[Event "*** SCC Grand Prix: Titled Tuesday Blitz"]
[Site "Chess.com"]
[Date "2020.07.21"]
[Round "7"]
[White "nrvisakh"]
[Black "Sibelephant"]
[Result "0-1"]
[WhiteElo "2831"]
[BlackElo "3101"]
[TimeControl "180+1"]
[EndTime "11:17:50 PDT"]
[Termination "Sibelephant won by checkmate"]

1. c4 {[%clk 0:03:00.9]} 1... e5 {[%clk 0:02:59.3]} 2. g3 {[%clk 0:03:00.1]}
2... Nc6 {[%clk 0:02:58.6]} 3. Bg2 {[%clk 0:03:00]} 3... g6 {[%clk 0:02:59.1]}
4. Nc3 {[%clk 0:02:53]} 4... Bg7 {[%clk 0:02:59.4]} 5. Nf3 {[%clk 0:02:53.3]}
5... Nf6 {[%clk 0:02:56.4]} 6. O-O {[%clk 0:02:52.6]} 6... O-O {[%clk
0:02:56.6]} 7. d4 {[%clk 0:02:51.6]} 7... exd4 {[%clk 0:02:56.9]} 8. Nxd4 {[%clk
0:02:51.5]} 8... Re8 {[%clk 0:02:57.6]} 9. Nxc6 {[%clk 0:02:28.5]} 9... dxc6
{[%clk 0:02:57.3]} 10. Qxd8 {[%clk 0:02:08]} 10... Rxd8 {[%clk 0:02:57.5]} 11.
Bf4 {[%clk 0:02:08.9]} 11... Be6 {[%clk 0:02:57.2]} 12. Bxc7 {[%clk 0:02:05.3]}
12... Rd7 {[%clk 0:02:57.2]} 13. Be5 {[%clk 0:02:03.3]} 13... Bxc4 {[%clk
0:02:57.1]} 14. Rfd1 {[%clk 0:02:02.1]} 14... Re7 {[%clk 0:02:50.8]} 15. Bd4
{[%clk 0:01:48.3]} 15... Bxe2 {[%clk 0:02:37.6]} 16. Re1 {[%clk 0:01:47.4]}
16... Rae8 {[%clk 0:02:37.8]} 17. Bxa7 {[%clk 0:01:38.9]} 17... Bc4 {[%clk
0:02:17.8]} 18. Rxe7 {[%clk 0:01:33.4]} 18... Rxe7 {[%clk 0:02:18.2]} 19. Rd1
{[%clk 0:01:28.1]} 19... Nd7 {[%clk 0:01:56.3]} 20. Bf1 {[%clk 0:01:15]} 20...
Be6 {[%clk 0:01:31.3]} 21. Bd4 {[%clk 0:01:12.4]} 21... Bg4 {[%clk 0:01:24.8]}
22. Rd2 {[%clk 0:01:08]} 22... Bxd4 {[%clk 0:01:19.5]} 23. Rxd4 {[%clk
0:01:06.8]} 23... Ne5 {[%clk 0:01:19.8]} 24. Rd8+ {[%clk 0:00:32.9]} 24... Kg7
{[%clk 0:01:19.2]} 25. h3 {[%clk 0:00:26.1]} 25... Nf3+ {[%clk 0:01:03]} 26. Kg2
{[%clk 0:00:25.8]} 26... Ne1+ {[%clk 0:01:03.3]} 27. Kh2 {[%clk 0:00:26]} 27...
Bf3 {[%clk 0:00:59.3]} 28. g4 {[%clk 0:00:24.7]} 28... g5 {[%clk 0:00:40.6]} 29.
Kg3 {[%clk 0:00:24.3]} 29... h5 {[%clk 0:00:41.2]} 30. gxh5 {[%clk 0:00:20.1]}
30... f5 {[%clk 0:00:41.2]} 31. h6+ {[%clk 0:00:10.9]} 31... Kxh6 {[%clk
0:00:40.7]} 32. Bc4 {[%clk 0:00:07.9]} 32... f4+ {[%clk 0:00:39.3]} 33. Kh2
{[%clk 0:00:08.1]} 33... b5 {[%clk 0:00:32.9]} 34. Bf1 {[%clk 0:00:04.7]} 34...
b4 {[%clk 0:00:22.2]} 35. Na4 {[%clk 0:00:04.7]} 35... Bd5 {[%clk 0:00:22.5]}
36. Rd6+ {[%clk 0:00:03.7]} 36... Kg7 {[%clk 0:00:21.8]} 37. Nc5 {[%clk
0:00:02]} 37... Nf3+ {[%clk 0:00:21.3]} 38. Kg2 {[%clk 0:00:02.4]} 38... Re1
{[%clk 0:00:20]} 39. Bd3 {[%clk 0:00:02]} 39... Rg1# {[%clk 0:00:19.6]} 0-1

[Event "*** SCC Grand Prix: Titled Tuesday Blitz"]
[Site "Chess.com"]
[Date "2020.07.21"]
[Round "7"]
[White "Trickov"]
[Black "BlackBoarder"]
[Result "1-0"]
[WhiteElo "2390"]
[BlackElo "2566"]
[TimeControl "180+1"]
[EndTime "11:17:51 PDT"]
[Termination "Trickov won by checkmate"]

1. d4 {[%clk 0:02:54.8]} 1... e6 {[%clk 0:03:00.1]} 2. Nf3 {[%clk 0:02:53.5]}
2... Nf6 {[%clk 0:03:00]} 3. g3 {[%clk 0:02:53.1]} 3... d5 {[%clk 0:02:57.8]} 4.
Bg2 {[%clk 0:02:52.1]} 4... a6 {[%clk 0:02:56.1]} 5. a4 {[%clk 0:02:50.8]} 5...
Be7 {[%clk 0:02:54.3]} 6. c4 {[%clk 0:02:50]} 6... dxc4 {[%clk 0:02:47.6]} 7.
Nbd2 {[%clk 0:02:49.6]} 7... O-O {[%clk 0:02:39.8]} 8. Nxc4 {[%clk 0:02:48.5]}
8... Nc6 {[%clk 0:02:27.6]} 9. O-O {[%clk 0:02:46.4]} 9... Nb4 {[%clk
0:02:25.4]} 10. Bd2 {[%clk 0:02:37.8]} 10... Ne4 {[%clk 0:02:10.3]} 11. Be1
{[%clk 0:02:34.3]} 11... Nd5 {[%clk 0:01:28.6]} 12. Nfe5 {[%clk 0:02:31.3]}
12... Nd6 {[%clk 0:01:25.3]} 13. e4 {[%clk 0:02:23.1]} 13... Nf6 {[%clk
0:01:10.8]} 14. Qd3 {[%clk 0:01:56.1]} 14... Nxc4 {[%clk 0:01:08.8]} 15. Nxc4
{[%clk 0:01:46.7]} 15... c5 {[%clk 0:00:58.1]} 16. d5 {[%clk 0:01:42.6]} 16...
exd5 {[%clk 0:00:49.3]} 17. exd5 {[%clk 0:01:42]} 17... Re8 {[%clk 0:00:33.5]}
18. Bc3 {[%clk 0:01:34]} 18... Bf8 {[%clk 0:00:27.2]} 19. a5 {[%clk 0:01:28.9]}
19... Bd7 {[%clk 0:00:26.6]} 20. Rfe1 {[%clk 0:00:41.5]} 20... Bb5 {[%clk
0:00:25.1]} 21. Rxe8 {[%clk 0:00:40.1]} 21... Nxe8 {[%clk 0:00:25.1]} 22. b3
{[%clk 0:00:38.3]} 22... Nd6 {[%clk 0:00:24.1]} 23. Bb2 {[%clk 0:00:37.3]} 23...
Qg5 {[%clk 0:00:19.2]} 24. Re1 {[%clk 0:00:33.9]} 24... h6 {[%clk 0:00:18.6]}
25. Qc3 {[%clk 0:00:33.5]} 25... Re8 {[%clk 0:00:14.3]} 26. Rxe8 {[%clk
0:00:30.1]} 26... Nxe8 {[%clk 0:00:15.2]} 27. h4 {[%clk 0:00:27.8]} 27... Qg6
{[%clk 0:00:12.1]} 28. Ne5 {[%clk 0:00:23.7]} 28... Qf5 {[%clk 0:00:09.5]} 29.
Nc4 {[%clk 0:00:18.7]} 29... Nd6 {[%clk 0:00:09.4]} 30. Nxd6 {[%clk 0:00:17.5]}
30... Qd7 {[%clk 0:00:04.7]} 31. Nxb5 {[%clk 0:00:16.2]} 31... axb5 {[%clk
0:00:05]} 32. Qe3 {[%clk 0:00:12.6]} 32... c4 {[%clk 0:00:05.1]} 33. bxc4 {[%clk
0:00:12]} 33... bxc4 {[%clk 0:00:06]} 34. Bc3 {[%clk 0:00:12]} 34... Qb5 {[%clk
0:00:05]} 35. Qd4 {[%clk 0:00:12]} 35... Qb3 {[%clk 0:00:02.7]} 36. d6 {[%clk
0:00:11.4]} 36... Bxd6 {[%clk 0:00:01.7]} 37. Qxg7# {[%clk 0:00:10.4]} 1-0

[Event "*** SCC Grand Prix: Titled Tuesday Blitz"]
[Site "Chess.com"]
[Date "2020.07.21"]
[Round "7"]
[White "LuisFSiles"]
[Black "Flopezin"]
[Result "1/2-1/2"]
[WhiteElo "2327"]
[BlackElo "2136"]
[TimeControl "180+1"]
[EndTime "11:17:51 PDT"]
[Termination "Game drawn - insufficient material"]

1. e4 {[%clk 0:03:00.9]} 1... e5 {[%clk 0:03:00.1]} 2. Nf3 {[%clk 0:03:00.6]}
2... Nc6 {[%clk 0:03:00.6]} 3. Bc4 {[%clk 0:03:00.2]} 3... Nf6 {[%clk
0:03:00.1]} 4. d3 {[%clk 0:02:58.7]} 4... Bc5 {[%clk 0:03:00.2]} 5. c3 {[%clk
0:02:56.4]} 5... d6 {[%clk 0:03:00.5]} 6. O-O {[%clk 0:02:55.3]} 6... O-O {[%clk
0:03:00.7]} 7. a4 {[%clk 0:02:55.2]} 7... a5 {[%clk 0:03:00.4]} 8. Be3 {[%clk
0:02:51]} 8... Bxe3 {[%clk 0:02:58.7]} 9. fxe3 {[%clk 0:02:50.9]} 9... Be6
{[%clk 0:02:59.6]} 10. Nbd2 {[%clk 0:02:50.3]} 10... Re8 {[%clk 0:02:49.9]} 11.
Qe1 {[%clk 0:02:46.9]} 11... Bxc4 {[%clk 0:02:33.8]} 12. Nxc4 {[%clk 0:02:46.3]}
12... d5 {[%clk 0:02:33.8]} 13. exd5 {[%clk 0:02:31.9]} 13... Qxd5 {[%clk
0:02:33.3]} 14. Qg3 {[%clk 0:01:56.8]} 14... Qxd3 {[%clk 0:02:23.4]} 15. Nfxe5
{[%clk 0:01:55.5]} 15... Nxe5 {[%clk 0:02:10.7]} 16. Nxe5 {[%clk 0:01:54.2]}
16... Qe4 {[%clk 0:01:55.9]} 17. Rxf6 {[%clk 0:01:40.2]} 17... Qxe5 {[%clk
0:01:54.6]} 18. Rf3 {[%clk 0:01:10.1]} 18... Qxg3 {[%clk 0:01:45.5]} 19. Rxg3
{[%clk 0:01:11]} 19... Rad8 {[%clk 0:01:45.5]} 20. Rf1 {[%clk 0:01:09.8]} 20...
Rd2 {[%clk 0:01:39.9]} 21. Rgf3 {[%clk 0:00:58.1]} 21... f6 {[%clk 0:01:35.1]}
22. R1f2 {[%clk 0:00:58]} 22... Rd1+ {[%clk 0:01:21.3]} 23. Rf1 {[%clk 0:00:57]}
23... Red8 {[%clk 0:01:22.2]} 24. Rf5 {[%clk 0:00:55.5]} 24... b6 {[%clk
0:01:17.6]} 25. Rb5 {[%clk 0:00:55.2]} 25... Kf7 {[%clk 0:01:08.5]} 26. Rxd1
{[%clk 0:00:49.6]} 26... Rxd1+ {[%clk 0:01:07.8]} 27. Kf2 {[%clk 0:00:50.5]}
27... Ra1 {[%clk 0:01:05.7]} 28. b3 {[%clk 0:00:48.5]} 28... Rc1 {[%clk
0:00:54.2]} 29. b4 {[%clk 0:00:39.5]} 29... Rxc3 {[%clk 0:00:39.2]} 30. bxa5
{[%clk 0:00:37.9]} 30... Ra3 {[%clk 0:00:34.4]} 31. axb6 {[%clk 0:00:36.5]}
31... cxb6 {[%clk 0:00:35.3]} 32. Rxb6 {[%clk 0:00:35.1]} 32... Rxa4 {[%clk
0:00:35.3]} 33. h4 {[%clk 0:00:34.1]} 33... Rxh4 {[%clk 0:00:33.8]} 34. Kf3
{[%clk 0:00:33.9]} 34... Ra4 {[%clk 0:00:34.7]} 35. g3 {[%clk 0:00:33.7]} 35...
g5 {[%clk 0:00:34.7]} 36. g4 {[%clk 0:00:33.2]} 36... Kg6 {[%clk 0:00:33.1]} 37.
Rb8 {[%clk 0:00:29.7]} 37... Ra7 {[%clk 0:00:33.3]} 38. Rg8+ {[%clk 0:00:28.8]}
38... Rg7 {[%clk 0:00:33.7]} 39. Rh8 {[%clk 0:00:29.1]} 39... Rf7 {[%clk
0:00:33.9]} 40. Rg8+ {[%clk 0:00:28.9]} 40... Rg7 {[%clk 0:00:31.2]} 41. Rh8
{[%clk 0:00:28.7]} 41... f5 {[%clk 0:00:31.8]} 42. Rf8 {[%clk 0:00:22.2]} 42...
Rf7 {[%clk 0:00:26.3]} 43. Rg8+ {[%clk 0:00:20.5]} 43... Kf6 {[%clk 0:00:25.6]}
44. gxf5 {[%clk 0:00:20.4]} 44... Kxf5 {[%clk 0:00:26.1]} 45. e4+ {[%clk
0:00:21]} 45... Kf6 {[%clk 0:00:20.5]} 46. Kg4 {[%clk 0:00:21.2]} 46... Rg7
{[%clk 0:00:20.1]} 47. Rxg7 {[%clk 0:00:21.2]} 47... Kxg7 {[%clk 0:00:20.4]} 48.
Kxg5 {[%clk 0:00:21.4]} 48... Kf7 {[%clk 0:00:21]} 49. Kh6 {[%clk 0:00:21.5]}
49... Kf6 {[%clk 0:00:21.3]} 50. Kxh7 {[%clk 0:00:22]} 50... Ke6 {[%clk
0:00:22.2]} 51. Kg6 {[%clk 0:00:22.2]} 51... Ke5 {[%clk 0:00:23.1]} 52. Kg5
{[%clk 0:00:22.6]} 52... Kxe4 {[%clk 0:00:24]} 1/2-1/2

[Event "*** SCC Grand Prix: Titled Tuesday Blitz"]
[Site "Chess.com"]
[Date "2020.07.21"]
[Round "7"]
[White "Slovak_fighter2000"]
[Black "Kildepiotr"]
[Result "0-1"]
[WhiteElo "2455"]
[BlackElo "2620"]
[TimeControl "180+1"]
[EndTime "11:17:53 PDT"]
[Termination "Kildepiotr won on time"]

1. d4 {[%clk 0:03:00.9]} 1... c5 {[%clk 0:02:59.4]} 2. c3 {[%clk 0:03:00.5]}
2... Nf6 {[%clk 0:02:59.3]} 3. Nf3 {[%clk 0:03:00.3]} 3... d5 {[%clk 0:02:59.7]}
4. Bf4 {[%clk 0:02:59.9]} 4... Bf5 {[%clk 0:02:59.3]} 5. e3 {[%clk 0:02:59.5]}
5... Nbd7 {[%clk 0:02:59.5]} 6. Nbd2 {[%clk 0:02:56.5]} 6... e6 {[%clk
0:02:59.4]} 7. h3 {[%clk 0:02:54.9]} 7... Qb6 {[%clk 0:02:58.1]} 8. Qb3 {[%clk
0:02:54.2]} 8... c4 {[%clk 0:02:57.4]} 9. Qxb6 {[%clk 0:02:47.8]} 9... Nxb6
{[%clk 0:02:58.3]} 10. a3 {[%clk 0:02:48]} 10... Na4 {[%clk 0:02:56.3]} 11. Ra2
{[%clk 0:02:44.4]} 11... h6 {[%clk 0:02:54.9]} 12. Ke2 {[%clk 0:02:43]} 12... b5
{[%clk 0:02:48.3]} 13. g4 {[%clk 0:02:42.1]} 13... Bh7 {[%clk 0:02:43.8]} 14.
Ne5 {[%clk 0:02:37.8]} 14... Nd7 {[%clk 0:02:38.7]} 15. f3 {[%clk 0:02:27.7]}
15... f6 {[%clk 0:02:36.2]} 16. Nxd7 {[%clk 0:02:26.1]} 16... Kxd7 {[%clk
0:02:37.1]} 17. Kf2 {[%clk 0:02:26]} 17... Be7 {[%clk 0:02:30.5]} 18. Be2 {[%clk
0:02:21.9]} 18... a5 {[%clk 0:02:30]} 19. e4 {[%clk 0:02:17.3]} 19... Ra7 {[%clk
0:02:23.1]} 20. Re1 {[%clk 0:02:01.9]} 20... Re8 {[%clk 0:02:21.2]} 21. h4
{[%clk 0:01:53]} 21... Bd6 {[%clk 0:02:06.7]} 22. Bxd6 {[%clk 0:01:41.7]} 22...
Kxd6 {[%clk 0:02:07.6]} 23. Bf1 {[%clk 0:01:40.6]} 23... e5 {[%clk 0:01:59]} 24.
dxe5+ {[%clk 0:01:36.5]} 24... Rxe5 {[%clk 0:01:58.3]} 25. exd5 {[%clk
0:01:33.7]} 25... Rxe1 {[%clk 0:01:55.4]} 26. Kxe1 {[%clk 0:01:33.2]} 26... Re7+
{[%clk 0:01:55.3]} 27. Kf2 {[%clk 0:01:32.6]} 27... Kxd5 {[%clk 0:01:55.1]} 28.
Bg2 {[%clk 0:01:26.7]} 28... Kc5 {[%clk 0:01:54.3]} 29. Bf1 {[%clk 0:01:19.7]}
29... g5 {[%clk 0:01:47.8]} 30. hxg5 {[%clk 0:01:19]} 30... hxg5 {[%clk
0:01:47.9]} 31. Be2 {[%clk 0:01:16.2]} 31... Kd5 {[%clk 0:01:43.9]} 32. Nf1
{[%clk 0:01:15.2]} 32... Nc5 {[%clk 0:01:34.1]} 33. Ne3+ {[%clk 0:01:11.2]}
33... Kc6 {[%clk 0:01:33.9]} 34. a4 {[%clk 0:01:05.8]} 34... Bd3 {[%clk
0:01:19.4]} 35. axb5+ {[%clk 0:01:01.6]} 35... Kxb5 {[%clk 0:01:20.3]} 36. Bd1
{[%clk 0:00:52.1]} 36... Rd7 {[%clk 0:01:16.3]} 37. Ke1 {[%clk 0:00:45.7]} 37...
Bg6 {[%clk 0:01:15.2]} 38. Ke2 {[%clk 0:00:38.5]} 38... Nd3 {[%clk 0:01:12.1]}
39. Ba4+ {[%clk 0:00:37.4]} 39... Kc5 {[%clk 0:01:11.6]} 40. Bxd7 {[%clk
0:00:37.3]} 40... Nc1+ {[%clk 0:01:11.9]} 41. Kd2 {[%clk 0:00:37.7]} 41... Nxa2
{[%clk 0:01:12.3]} 42. Bf5 {[%clk 0:00:29.8]} 42... Bxf5 {[%clk 0:00:55]} 43.
gxf5 {[%clk 0:00:30.7]} 43... Kd6 {[%clk 0:00:45.8]} 44. Ng4 {[%clk 0:00:18.9]}
44... Kd5 {[%clk 0:00:28.7]} 45. Nxf6+ {[%clk 0:00:17.8]} 45... Ke5 {[%clk
0:00:28.2]} 46. Ne4 {[%clk 0:00:10.9]} 46... Kxf5 {[%clk 0:00:28]} 47. Kc2
{[%clk 0:00:09.3]} 47... Kf4 {[%clk 0:00:27.1]} 48. Kb1 {[%clk 0:00:06.5]} 48...
Nxc3+ {[%clk 0:00:26.7]} 0-1

[Event "*** SCC Grand Prix: Titled Tuesday Blitz"]
[Site "Chess.com"]
[Date "2020.07.21"]
[Round "7"]
[White "vladislavkovalev"]
[Black "Bulldog167"]
[Result "1-0"]
[WhiteElo "2907"]
[BlackElo "2748"]
[TimeControl "180+1"]
[EndTime "11:17:54 PDT"]
[Termination "vladislavkovalev won by resignation"]

1. e4 {[%clk 0:03:00.9]} 1... e6 {[%clk 0:03:00.5]} 2. d4 {[%clk 0:03:00.7]}
2... d5 {[%clk 0:03:01.1]} 3. Bd3 {[%clk 0:03:01.5]} 3... Nf6 {[%clk 0:02:52.7]}
4. e5 {[%clk 0:03:01.2]} 4... Nfd7 {[%clk 0:02:53.3]} 5. Ne2 {[%clk 0:03:01.8]}
5... c5 {[%clk 0:02:52.8]} 6. c3 {[%clk 0:03:02.3]} 6... Nc6 {[%clk 0:02:51.4]}
7. Be3 {[%clk 0:02:56.6]} 7... Be7 {[%clk 0:02:47.2]} 8. Nd2 {[%clk 0:02:55.7]}
8... a5 {[%clk 0:02:43.8]} 9. O-O {[%clk 0:02:51.7]} 9... a4 {[%clk 0:02:43.8]}
10. Nf3 {[%clk 0:02:49.9]} 10... a3 {[%clk 0:02:43.9]} 11. b3 {[%clk 0:02:49.4]}
11... cxd4 {[%clk 0:02:43.4]} 12. cxd4 {[%clk 0:02:49.9]} 12... Nb4 {[%clk
0:02:42.1]} 13. Nf4 {[%clk 0:02:46.3]} 13... Nxd3 {[%clk 0:02:40]} 14. Qxd3
{[%clk 0:02:47.2]} 14... h5 {[%clk 0:02:37.1]} 15. Rac1 {[%clk 0:02:26.8]} 15...
Nb8 {[%clk 0:02:35.4]} 16. h4 {[%clk 0:02:22.2]} 16... Nc6 {[%clk 0:02:33.6]}
17. Ng5 {[%clk 0:02:20.8]} 17... Nb4 {[%clk 0:02:17.4]} 18. Qe2 {[%clk
0:02:16.9]} 18... g6 {[%clk 0:02:08.4]} 19. Nd3 {[%clk 0:02:04.8]} 19... Nxd3
{[%clk 0:01:53.2]} 20. Qxd3 {[%clk 0:02:05.7]} 20... Bd7 {[%clk 0:01:53.5]} 21.
Rc2 {[%clk 0:01:59.2]} 21... Rc8 {[%clk 0:01:45.2]} 22. Rfc1 {[%clk 0:01:59.2]}
22... Rxc2 {[%clk 0:01:44.5]} 23. Qxc2 {[%clk 0:01:57.7]} 23... O-O {[%clk
0:01:38.8]} 24. Nf3 {[%clk 0:01:42.5]} 24... Bxh4 {[%clk 0:01:26.5]} 25. Nxh4
{[%clk 0:01:26.2]} 25... Qxh4 {[%clk 0:01:27.4]} 26. Qd2 {[%clk 0:01:26.9]}
26... Rc8 {[%clk 0:01:15.6]} 27. Rxc8+ {[%clk 0:00:54.9]} 27... Bxc8 {[%clk
0:01:16.5]} 28. Bg5 {[%clk 0:00:55.5]} 28... Qe4 {[%clk 0:00:51.7]} 29. Qa5
{[%clk 0:00:55]} 29... Kh7 {[%clk 0:00:48.5]} 30. Qc7 {[%clk 0:00:46.4]} 30...
Qe1+ {[%clk 0:00:41.9]} 31. Kh2 {[%clk 0:00:46.1]} 31... Qxf2 {[%clk 0:00:42.8]}
32. Qxc8 {[%clk 0:00:46.3]} 32... h4 {[%clk 0:00:37.6]} 33. Qc3 {[%clk
0:00:46.2]} 33... Qxa2 {[%clk 0:00:29.3]} 34. Bc1 {[%clk 0:00:38.4]} 34... g5
{[%clk 0:00:20.5]} 35. Qd3+ {[%clk 0:00:28.8]} 35... Kg8 {[%clk 0:00:18]} 36.
Qe3 {[%clk 0:00:28.6]} 36... Kf8 {[%clk 0:00:16.9]} 37. Qxg5 {[%clk 0:00:25.1]}
37... Qxb3 {[%clk 0:00:17.1]} 38. Qd8+ {[%clk 0:00:08.5]} 38... Kg7 {[%clk
0:00:17.4]} 39. Qxh4 {[%clk 0:00:08.4]} 39... a2 {[%clk 0:00:15.6]} 40. Bh6+
{[%clk 0:00:08.9]} 40... Kh7 {[%clk 0:00:09.9]} 41. Qf6 {[%clk 0:00:06.8]} 1-0

[Event "*** SCC Grand Prix: Titled Tuesday Blitz"]
[Site "Chess.com"]
[Date "2020.07.21"]
[Round "7"]
[White "Supernotar"]
[Black "Khazieva_Elza"]
[Result "1-0"]
[WhiteElo "2715"]
[BlackElo "2351"]
[TimeControl "180+1"]
[EndTime "11:17:54 PDT"]
[Termination "Supernotar won on time"]

1. d4 {[%clk 0:03:00.9]} 1... Nf6 {[%clk 0:03:00.1]} 2. c4 {[%clk 0:03:01]} 2...
d6 {[%clk 0:03:00.3]} 3. Nc3 {[%clk 0:03:00.5]} 3... Bf5 {[%clk 0:03:00.3]} 4.
g3 {[%clk 0:02:58.2]} 4... c6 {[%clk 0:03:00.4]} 5. Bg2 {[%clk 0:02:57.9]} 5...
h6 {[%clk 0:03:00.9]} 6. e4 {[%clk 0:02:57.9]} 6... Bh7 {[%clk 0:02:58]} 7. Nge2
{[%clk 0:02:58.5]} 7... Nbd7 {[%clk 0:02:57.2]} 8. O-O {[%clk 0:02:58.2]} 8...
e5 {[%clk 0:02:57.6]} 9. f4 {[%clk 0:02:53.2]} 9... Be7 {[%clk 0:02:52.5]} 10.
Kh1 {[%clk 0:02:52.8]} 10... O-O {[%clk 0:02:52.3]} 11. Be3 {[%clk 0:02:52.7]}
11... Re8 {[%clk 0:02:47.5]} 12. h3 {[%clk 0:02:49.7]} 12... Qc7 {[%clk
0:02:39.5]} 13. g4 {[%clk 0:02:45.9]} 13... exd4 {[%clk 0:02:25.1]} 14. Nxd4
{[%clk 0:02:44.4]} 14... Bf8 {[%clk 0:02:20.9]} 15. Nf5 {[%clk 0:02:39.2]} 15...
Bxf5 {[%clk 0:02:16.1]} 16. gxf5 {[%clk 0:02:39]} 16... a6 {[%clk 0:01:55.6]}
17. Qf3 {[%clk 0:02:37]} 17... b5 {[%clk 0:01:50.9]} 18. cxb5 {[%clk 0:02:36.8]}
18... axb5 {[%clk 0:01:50.9]} 19. a3 {[%clk 0:02:36.7]} 19... Rab8 {[%clk
0:01:44.6]} 20. Rac1 {[%clk 0:02:34.6]} 20... b4 {[%clk 0:01:39.9]} 21. axb4
{[%clk 0:02:33.7]} 21... Rxb4 {[%clk 0:01:39.4]} 22. Qf2 {[%clk 0:02:18.4]}
22... Qb8 {[%clk 0:01:07.5]} 23. Rc2 {[%clk 0:02:16.6]} 23... Nb6 {[%clk
0:00:48.9]} 24. e5 {[%clk 0:02:07.7]} 24... Nfd5 {[%clk 0:00:39.7]} 25. Nxd5
{[%clk 0:02:05]} 25... Nxd5 {[%clk 0:00:35.4]} 26. Rxc6 {[%clk 0:01:40]} 26...
Rxb2 {[%clk 0:00:30.2]} 27. Qg3 {[%clk 0:01:32.4]} 27... Nxe3 {[%clk 0:00:28.5]}
28. Qxe3 {[%clk 0:01:31.3]} 28... dxe5 {[%clk 0:00:28.3]} 29. Bd5 {[%clk
0:01:17.9]} 29... exf4 {[%clk 0:00:17.9]} 30. Qd3 {[%clk 0:01:13.9]} 30... Qb5
{[%clk 0:00:07.2]} 31. Qxb5 {[%clk 0:00:27.6]} 31... Rxb5 {[%clk 0:00:08.1]} 32.
Rd1 {[%clk 0:00:21.2]} 32... Rc5 {[%clk 0:00:06.9]} 33. Rxc5 {[%clk 0:00:18.2]}
33... Bxc5 {[%clk 0:00:06.7]} 34. Kg2 {[%clk 0:00:18.5]} 34... Re2+ {[%clk
0:00:04.8]} 35. Kf3 {[%clk 0:00:16.8]} 35... Rf2+ {[%clk 0:00:05.1]} 36. Ke4
{[%clk 0:00:14.2]} 36... Bd6 {[%clk 0:00:04.5]} 37. Rb1 {[%clk 0:00:13.4]} 37...
Re2+ {[%clk 0:00:04.2]} 38. Kd4 {[%clk 0:00:12.3]} 38... Be5+ {[%clk 0:00:03.5]}
39. Kd3 {[%clk 0:00:11.7]} 39... Re3+ {[%clk 0:00:03.4]} 40. Kd2 {[%clk
0:00:12.2]} 40... Kf8 {[%clk 0:00:03]} 41. Rb7 {[%clk 0:00:12]} 1-0

[Event "*** SCC Grand Prix: Titled Tuesday Blitz"]
[Site "Chess.com"]
[Date "2020.07.21"]
[Round "7"]
[White "CaspiIsrael"]
[Black "MasterKroket"]
[Result "1-0"]
[WhiteElo "2618"]
[BlackElo "2406"]
[TimeControl "180+1"]
[EndTime "11:17:55 PDT"]
[Termination "CaspiIsrael won on time"]

1. e4 {[%clk 0:03:00.9]} 1... c5 {[%clk 0:03:00]} 2. Nf3 {[%clk 0:02:58.6]} 2...
e6 {[%clk 0:03:00.3]} 3. d4 {[%clk 0:02:59]} 3... cxd4 {[%clk 0:03:01.2]} 4.
Nxd4 {[%clk 0:02:59.6]} 4... Nc6 {[%clk 0:03:01.7]} 5. Nc3 {[%clk 0:03:00.1]}
5... Qc7 {[%clk 0:03:02]} 6. Be3 {[%clk 0:03:00.3]} 6... a6 {[%clk 0:03:02.5]}
7. Qd2 {[%clk 0:03:00.4]} 7... Nf6 {[%clk 0:03:01.7]} 8. f3 {[%clk 0:03:00.2]}
8... Bb4 {[%clk 0:03:01.5]} 9. O-O-O {[%clk 0:02:59.6]} 9... Ne5 {[%clk
0:03:01.7]} 10. Nb3 {[%clk 0:02:59.1]} 10... b5 {[%clk 0:03:01.3]} 11. Qe1
{[%clk 0:02:53.1]} 11... Be7 {[%clk 0:02:45.8]} 12. Qg3 {[%clk 0:02:48.5]} 12...
d6 {[%clk 0:02:41]} 13. Qxg7 {[%clk 0:02:44.4]} 13... Rg8 {[%clk 0:02:40]} 14.
Qh6 {[%clk 0:02:44.5]} 14... Rg6 {[%clk 0:02:33.7]} 15. Qh3 {[%clk 0:02:44.2]}
15... Bd7 {[%clk 0:02:22.9]} 16. Kb1 {[%clk 0:02:41.5]} 16... Rc8 {[%clk
0:02:19.6]} 17. Rc1 {[%clk 0:02:24.7]} 17... b4 {[%clk 0:02:14.7]} 18. Nd1
{[%clk 0:02:21.7]} 18... a5 {[%clk 0:02:14.9]} 19. Nd2 {[%clk 0:02:15.6]} 19...
a4 {[%clk 0:02:02.8]} 20. f4 {[%clk 0:02:09.9]} 20... Neg4 {[%clk 0:01:59.5]}
21. Bg1 {[%clk 0:02:08.7]} 21... Bc6 {[%clk 0:01:34.5]} 22. Bd3 {[%clk
0:02:06.3]} 22... e5 {[%clk 0:01:27.5]} 23. f5 {[%clk 0:02:05.7]} 23... Rh6
{[%clk 0:01:27.5]} 24. Qg3 {[%clk 0:02:02.7]} 24... a3 {[%clk 0:01:19.6]} 25. b3
{[%clk 0:02:01.4]} 25... d5 {[%clk 0:01:15.4]} 26. exd5 {[%clk 0:01:53.8]} 26...
Bxd5 {[%clk 0:01:14.9]} 27. c4 {[%clk 0:01:49.7]} 27... bxc3 {[%clk 0:01:09.1]}
28. Rxc3 {[%clk 0:01:48.8]} 28... Qb8 {[%clk 0:01:06.1]} 29. h3 {[%clk
0:01:39.2]} 29... Rxc3 {[%clk 0:00:58.1]} 30. Nxc3 {[%clk 0:01:38.8]} 30... Bb4
{[%clk 0:00:56.3]} 31. Nxd5 {[%clk 0:01:33.2]} 31... Nxd5 {[%clk 0:00:57.2]} 32.
Qxg4 {[%clk 0:01:30.8]} 32... Qc7 {[%clk 0:00:44.2]} 33. Nc4 {[%clk 0:01:27.5]}
33... Qe7 {[%clk 0:00:21.5]} 34. Be3 {[%clk 0:01:14.8]} 34... Rc6 {[%clk
0:00:19.3]} 35. Rc1 {[%clk 0:01:10.3]} 35... Nxe3 {[%clk 0:00:17.9]} 36. Nxe3
{[%clk 0:00:57.8]} 36... Rxc1+ {[%clk 0:00:17.6]} 37. Kxc1 {[%clk 0:00:58]}
37... Qc5+ {[%clk 0:00:18.2]} 38. Nc2 {[%clk 0:00:50.6]} 38... Qg1+ {[%clk
0:00:16.7]} 39. Qd1 {[%clk 0:00:50.3]} 39... Qxg2 {[%clk 0:00:16.7]} 40. Be2
{[%clk 0:00:39]} 40... Be7 {[%clk 0:00:09]} 41. Qd3 {[%clk 0:00:32.1]} 41...
Qg1+ {[%clk 0:00:08.4]} 42. Bd1 {[%clk 0:00:31.3]} 42... Bg5+ {[%clk 0:00:05.6]}
43. Kb1 {[%clk 0:00:31.1]} 43... Kf8 {[%clk 0:00:03.7]} 44. Nxa3 {[%clk
0:00:30.4]} 44... Kg7 {[%clk 0:00:03.6]} 45. Nc4 {[%clk 0:00:29.9]} 45... e4
{[%clk 0:00:03.9]} 46. Qe2 {[%clk 0:00:27.6]} 46... e3 {[%clk 0:00:03.2]} 47. a4
{[%clk 0:00:26.5]} 47... Qg3 {[%clk 0:00:01.2]} 48. Qg4 {[%clk 0:00:23.6]} 1-0